bitfinex-derivatives/quotes_SOLF0:USTF0_20240911
["timestamp","ask_amount","ask_price","bid_price","bid_amount"]
[1726096399077,11.6,132.38,132.36,3.7769]
[1726096399480,11.6,132.37,132.36,3.7769]
[1726096401480,11.6,132.37,132.2,31.69675334]
[1726096401678,3.72980231,132.44,132.28,14.3304]
[1726096401679,11.6,132.34,132.28,14.3304]
[1726096401881,11.6,132.34,132.28,18.01761103]
[1726096402181,11.6,132.34,132.32,3.7781]
[1726096402477,11.6,132.35,132.33,3.7778]
[1726096402682,11.6,132.37,132.31,11.6]
[1726096403071,11.6,132.37,132.34,3.7774]
[1726096403273,2.7592,132.43,132.32,11.6]
[1726096403580,11.6,132.4,132.34,11.6]
[1726096403782,11.6,132.4,132.35,11.6]
[1726096404377,11.6,132.4,132.37,3.7764]
[1726096404573,15.3759,132.4,132.37,3.7764]
[1726096406883,3.7767,132.37,132.28,3.68721103]
[1726096407076,11.6,132.38,132.31,11.6]
[1726096407277,11.6,132.38,132.32,11.6]
[1726096407882,15.3766,132.38,132.35,3.7771]
[1726096413385,15.3762,132.39,132.36,3.7769]
[1726096414811,11.6,132.39,132.36,3.7769]
[1726096415285,11.6,132.39,132.37,3.7766]
[1726096415489,11.6,132.4,132.37,3.7766]
[1726096415889,15.3758,132.4,132.37,3.7766]
[1726096419288,15.3762,132.39,132.36,3.7769]
[1726096420094,15.3762,132.39,132.35,3.7772]
[1726096422300,15.3762,132.39,132.36,3.7769]
[1726096427992,15.3766,132.38,132.29,2.6725]
[1726096428198,15.3766,132.38,132.31,11.6]
[1726096428596,3.7767,132.37,132.34,3.7774]
[1726096431200,15.3771,132.36,132.33,3.7777]
[1726096433205,15.3771,132.36,132.34,3.7775]
[1726096434098,4.1049,132.43,132.35,3.7772]
[1726096434296,11.6,132.38,132.35,3.7772]
[1726096435199,4.1049,132.43,132.35,3.7772]
[1726096435598,11.6,132.39,132.35,3.7772]
[1726096436194,4.1049,132.43,132.35,3.7772]
[1726096436400,11.6,132.39,132.35,3.7772]
[1726096436801,3.7764,132.38,132.35,3.7772]
[1726096441215,15.3762,132.39,132.33,11.6]
[1726096441912,15.3762,132.39,132.36,3.7769]
[1726096444314,11.6,132.39,132.37,3.7766]
[1726096447914,15.3761,132.39,132.36,3.7769]
[1726096448826,15.3761,132.39,132.35,3.7771]
[1726096449417,11.6,132.38,132.34,3.7774]
[1726096450307,3.7767,132.37,132.34,3.7774]
[1726096463327,11.6,132.36,132.29,2.6725]
[1726096463522,11.6,132.36,132.3,11.6]
[1726096465929,15.3771,132.36,132.3,11.6]
[1726096466327,3.7772,132.35,132.29,2.6725]
[1726096466524,11.6,132.35,132.29,2.6725]
[1726096467337,11.6,132.35,132.29,14.2725]
[1726096467833,15.3773,132.35,132.31,3.7781]
[1726096468931,11.6,132.34,132.3,3.7785]
[1726096469626,11.6,132.32,132.26,8.02401777]
[1726096470032,11.6,132.32,132.26,19.62401777]
[1726096470329,11.6,132.32,132.29,3.7789]
[1726096471221,3.7779,132.33,132.29,3.7789]
[1726096471426,15.3779,132.33,132.29,3.7789]
[1726096471733,15.3779,132.33,132.3,3.7786]
[1726096471926,4.0664,132.36,132.29,11.6]
[1726096472123,11.6,132.35,132.29,11.6]
[1726096472325,15.3774,132.35,132.31,3.7782]
[1726096474935,11.6,132.33,132.31,3.7782]
[1726096475139,11.6,132.33,132.3,3.7785]
[1726096476230,15.3778,132.33,132.29,3.7789]
[1726096476426,11.6,132.32,132.29,3.7789]
[1726096479236,11.6,132.32,132.3,3.7786]
[1726096480546,15.3778,132.33,132.3,3.7786]
[1726096491044,11.6,132.32,132.3,3.7786]
[1726096500758,4.0664,132.36,132.26,19.62401777]
[1726096500950,11.6,132.33,132.26,19.62401777]
[1726096501146,4.0664,132.36,132.29,11.6]
[1726096501352,11.6,132.35,132.29,11.6]
[1726096501552,3.77257321,132.37,132.32,11.6]
[1726096501855,18.80912759,132.41,132.33,11.6]
[1726096501856,11.6,132.38,132.33,11.6]
[1726096502263,15.3761,132.39,132.33,11.6]
[1726096502650,11.6,132.39,132.36,3.7767]
[1726096502853,11.6,132.39,132.33,15.37805478]
[1726096503054,11.6,132.39,132.34,11.6]
[1726096503251,5.0917,132.41,132.34,11.6]
[1726096503554,42.10860348,132.52,132.34,11.6]
[1726096503555,11.6,132.44,132.39,11.6]
[1726096503955,11.6,132.44,132.41,3.7753]
[1726096504165,11.6,132.44,132.39,11.6]
[1726096504756,11.6,132.44,132.41,3.7754]
[1726096505857,11.6,132.43,132.41,3.7754]
[1726096509066,11.6,132.42,132.35,2.7597]
[1726096509265,11.6,132.41,132.36,11.6]
[1726096509567,11.6,132.42,132.37,11.6]
[1726096509776,11.6,132.42,132.4,3.7756]
[1726096510160,11.6,132.42,132.37,11.6]
[1726096511463,3.7747,132.44,132.41,3.7755]
[1726096511464,11.6,132.43,132.41,3.7755]
[1726096511663,11.6,132.43,132.38,11.6]
[1726096511868,7.98450823,132.48,132.39,11.6]
[1726096512078,11.6,132.45,132.39,11.6]
[1726096512663,15.374,132.47,132.41,11.6]
[1726096512972,11.6,132.47,132.41,11.6]
[1726096513371,11.6,132.47,132.44,3.7745]
[1726096513571,11.6,132.45,132.35,2.7597]
[1726096513768,11.6,132.43,132.42,3.7752]
[1726096513970,7.98450823,132.48,132.38,11.6]
[1726096513971,11.6,132.44,132.38,11.6]
[1726096514472,11.6,132.44,132.42,3.775]
[1726096516779,11.6,132.43,132.37,11.6]
[1726096517071,11.6,132.41,132.36,11.6]
[1726096517763,11.6,132.41,132.39,3.7761]
[1726096519774,11.6,132.4,132.38,3.7763]
[1726096519975,11.6,132.39,132.38,3.7763]
[1726096520171,11.6,132.39,132.35,1.368]
[1726096520370,11.6,132.4,132.35,1.368]
[1726096520680,12.9701,132.41,132.35,12.968]
[1726096521067,11.6,132.41,132.4,3.7758]
[1726096521965,11.6,132.42,132.4,3.7758]
[1726096523978,11.6,132.41,132.38,3.7762]
[1726096524178,11.6,132.4,132.38,3.7762]
[1726096525480,11.6,132.41,132.36,11.6]
[1726096526579,11.6,132.41,132.39,3.7759]
[1726096526879,11.6,132.41,132.4,3.7758]
[1726096527085,11.6,132.43,132.37,11.6]
[1726096527679,15.375,132.43,132.37,11.6]
[1726096528878,15.3753,132.42,132.36,11.6]
[1726096529576,15.3753,132.42,132.38,3.7762]
[1726096530080,15.3753,132.42,132.39,3.7761]
[1726096530875,11.6,132.4,132.35,1.368]
[1726096532886,11.6,132.4,132.38,3.7764]
[1726096534286,15.3759,132.4,132.37,3.7766]
[1726096536085,15.3761,132.39,132.36,3.7769]
[1726096537282,6.66840823,132.48,132.36,11.6]
[1726096537491,11.6,132.43,132.35,1.4168]
[1726096537686,11.6,132.42,132.36,11.6]
[1726096538079,11.6,132.41,132.37,3.7766]
[1726096538280,11.6,132.41,132.35,1.4168]
[1726096539281,11.6,132.42,132.36,11.6]
[1726096539681,11.6,132.42,132.4,3.7757]
[1726096540875,11.6,132.41,132.36,11.6]
[1726096541076,11.6,132.41,132.35,1.4168]
[1726096541593,11.6,132.41,132.39,3.776]
[1726096542288,1.336,132.47,132.37,11.6]
[1726096542289,11.6,132.43,132.37,11.6]
[1726096542677,11.6,132.43,132.4,3.7756]
[1726096553202,1.336,132.47,132.41,3.7754]
[1726096553401,11.6,132.43,132.41,3.7754]
[1726096554303,11.6,132.43,132.36,11.6]
[1726096554304,15.375,132.43,132.4,3.7758]
[1726096556597,11.6,132.43,132.41,3.7754]
[1726096556802,11.6,132.43,132.36,11.6]
[1726096557208,11.6,132.43,132.4,3.7757]
[1726096558424,15.375,132.43,132.39,3.776]
[1726096558818,11.6,132.41,132.38,3.7763]
[1726096559016,11.6,132.4,132.35,13.0168]
[1726096560223,11.6,132.4,132.37,3.7765]
[1726096561217,15.3759,132.4,132.37,3.7765]
[1726096564926,11.6,132.4,132.38,3.7763]
[1726096565226,11.6,132.4,132.35,1.4168]
[1726096567022,11.6,132.4,132.38,3.7762]
[1726096570618,15.3759,132.4,132.37,3.7766]
[1726096571420,15.3764,132.39,132.3,1.3708]
[1726096571627,15.3764,132.39,132.32,11.6]
[1726096572025,15.3764,132.39,132.36,3.7768]
[1726096574827,3.7764,132.38,132.35,3.7771]
[1726096575028,11.6,132.37,132.35,3.7771]
[1726096575429,4.0731,132.4,132.3,2.7248]
[1726096575629,15.6731,132.4,132.34,11.6]
[1726096575832,15.6731,132.4,132.3,2.7248]
[1726096576131,11.6,132.38,132.31,11.6]
[1726096577525,11.6,132.38,132.35,3.7772]
[1726096578338,11.6,132.38,132.36,3.7769]
[1726096578724,1.3716,132.4,132.35,11.6]
[1726096578925,1.3716,132.4,132.37,3.7764]
[1726096579334,12.9716,132.4,132.37,3.7764]
[1726096579727,16.7476,132.4,132.37,3.7764]
[1726096586040,12.9716,132.4,132.37,3.7764]
[1726096587232,3.7756,132.41,132.38,3.7763]
[1726096587437,11.6,132.41,132.38,3.7763]
[1726096587639,11.6,132.39,132.3,2.7248]
[1726096587841,15.3765,132.38,132.34,3.7772]
[1726096588347,15.3765,132.38,132.35,3.7771]
[1726096588940,15.3767,132.37,132.3,2.7248]
[1726096589241,11.6,132.37,132.3,12.9708]
[1726096589536,3.7772,132.36,132.32,3.7778]
[1726096589737,11.6,132.35,132.32,3.7778]
[1726096589938,11.6,132.35,132.3,11.6]
[1726096591432,11.6,132.35,132.33,3.7777]
[1726096595839,11.6,132.35,132.34,3.7775]
[1726096597142,11.6,132.36,132.34,3.7775]
[1726096598947,3.7768,132.37,132.34,3.7775]
[1726096599138,11.6,132.36,132.34,3.7775]
[1726096600452,3.7765,132.38,132.35,3.7772]
[1726096600639,11.6,132.37,132.35,3.7772]
[1726096608551,11.6,132.37,132.36,3.777]
[1726096608949,11.6,132.38,132.36,3.777]
[1726096609452,11.6,132.39,132.37,3.7767]
[1726096609658,11.6,132.39,132.34,11.6]
[1726096609950,11.6,132.39,132.38,3.7764]
[1726096610547,1.4016,132.4,132.35,11.6]
[1726096611348,16.88586413,132.41,132.38,3.7761]
[1726096611549,13.0417,132.41,132.38,3.7761]
[1726096611857,11.6,132.41,132.38,3.7761]
[1726096613555,11.6,132.39,132.34,2.7003]
[1726096614155,11.6,132.39,132.34,14.3003]
[1726096614855,11.6,132.39,132.38,3.7764]
[1726096618144,3.7751,132.43,132.4,3.7757]
[1726096618353,15.3751,132.43,132.4,3.7757]
[1726096619160,15.3751,132.43,132.39,3.776]
[1726096620452,11.6,132.41,132.39,3.776]
[1726096625859,11.6,132.4,132.34,4.035]
[1726096626062,15.36794243,132.4,132.34,15.635]
[1726096626356,19.14394243,132.4,132.37,3.7765]
[1726096627261,3.76794243,132.4,132.37,3.7765]
[1726096627458,11.6,132.4,132.37,3.7765]
[1726096627754,19.07539231,132.4,132.37,3.7765]
[1726096627953,11.6,132.39,132.36,3.7768]
[1726096628149,11.6,132.37,132.29,1.3701]
[1726096628371,11.6,132.36,132.3,11.6]
[1726096628857,15.377,132.36,132.3,11.6]
[1726096629661,11.6,132.36,132.33,3.7778]
[1726096631255,11.6,132.36,132.34,3.7775]
[1726096633657,161.20789231,132.46,132.34,3.7775]
[1726096633862,11.6,132.37,132.34,3.7775]
[1726096642865,15.3767,132.37,132.34,3.7775]
[1726096644173,3.777,132.36,132.33,3.7777]
[1726096644368,11.6,132.35,132.33,3.7777]
[1726096645165,11.6,132.35,132.34,3.7775]
[1726096645364,15.3769,132.37,132.34,3.7775]
[1726096653080,11.6,132.37,132.35,3.7772]
[1726096658385,11.6,132.37,132.34,3.7774]
[1726096660378,15.3768,132.37,132.34,3.7774]
[1726096661584,11.6,132.35,132.34,3.7774]
[1726096665091,15.3768,132.37,132.34,3.7774]
[1726096665798,3.71411494,132.38,132.36,3.7767]
[1726096666009,11.6,132.38,132.36,3.7767]
[1726096666307,15.37078438,132.38,132.36,3.7767]
[1726096666610,15.37078438,132.38,132.35,3.7771]
[1726096668914,11.6,132.37,132.34,3.7774]
[1726096669812,15.3767,132.37,132.34,3.7774]
[1726096672511,11.6,132.37,132.35,3.7771]
[1726096672903,15.37078438,132.38,132.35,3.7771]
[1726096673109,11.6,132.38,132.35,3.7771]
[1726096673610,15.45142844,132.38,132.35,3.7771]
[1726096675314,11.6,132.38,132.35,3.7771]
[1726096675515,3.73357382,132.4,132.34,11.6]
[1726096675817,11.6,132.42,132.36,11.6]
[1726096676916,15.3754,132.42,132.38,3.7763]
[1726096679519,11.6,132.4,132.38,3.7763]
[1726096680519,15.3759,132.4,132.37,3.7765]
[1726096680821,11.6,132.39,132.37,3.7765]
[1726096685619,19.09757373,132.4,132.37,3.7765]
[1726096688025,19.09757373,132.4,132.29,112.66823972]
[1726096688026,15.3762,132.39,132.29,112.66823972]
[1726096688228,15.3762,132.39,132.32,11.6]
[1726096688430,15.3762,132.39,132.36,3.7769]
[1726096688627,3.7765,132.38,132.32,11.6]
[1726096689229,3.7765,132.38,132.35,3.777]
[1726096689731,15.3762,132.39,132.36,3.7769]
[1726096691431,3.7764,132.38,132.35,3.7771]
[1726096692023,11.6,132.37,132.29,112.66823972]
[1726096692227,11.6,132.36,132.34,3.7774]
[1726096692828,1.4279,132.39,132.33,11.6]
[1726096693028,13.0279,132.39,132.33,11.6]
[1726096693731,16.8042,132.39,132.35,3.7771]
[1726096697228,11.6,132.37,132.35,3.7771]
[1726096697929,15.3767,132.37,132.34,3.7774]
[1726096700133,1.4279,132.39,132.33,3.7777]
[1726096700344,11.6,132.37,132.31,11.6]
[1726096701633,11.6,132.37,132.35,3.7771]
[1726096704744,13.0279,132.39,132.36,3.777]
[1726096705043,11.6,132.4,132.34,11.6]
[1726096705438,11.6,132.4,132.37,3.7765]
[1726096706843,15.3758,132.4,132.37,3.7765]
[1726096708246,11.6,132.38,132.36,3.7768]
[1726096709744,7.49663069,132.4,132.36,3.7768]
[1726096709941,11.6,132.39,132.36,3.7768]
[1726096710533,15.39466283,132.39,132.36,3.7768]
[1726096711233,15.39466283,132.39,132.32,11.6]
[1726096711234,15.39466283,132.39,132.37,3.7765]
[1726096711435,11.6,132.39,132.37,3.7765]
[1726096711746,3.7757,132.41,132.35,11.6]
[1726096712040,11.6,132.41,132.39,3.7759]
[1726096712237,11.6,132.41,132.35,11.6]
[1726096712839,3.7754,132.42,132.38,3.7763]
[1726096713030,11.6,132.41,132.38,3.7763]
[1726096716248,15.3756,132.41,132.38,3.7763]
[1726096722253,3.7756,132.41,132.38,3.7763]
[1726096722552,15.3756,132.41,132.38,3.7763]
[1726096724759,3.7756,132.41,132.38,3.7763]
[1726096724957,15.3756,132.41,132.38,3.7763]
[1726096728060,11.6,132.39,132.37,3.7765]
[1726096728263,11.6,132.39,132.33,1.3116]
[1726096728264,11.6,132.38,132.33,1.3116]
[1726096728458,11.6,132.38,132.36,3.7769]
[1726096728756,11.6,132.38,132.33,1.3116]
[1726096729757,11.6,132.38,132.36,3.7769]
[1726096730156,11.6,132.38,132.33,1.3116]
[1726096730357,11.6,132.37,132.33,1.3116]
[1726096731852,11.6,132.37,132.35,3.7771]
[1726096732256,3.7765,132.38,132.35,3.7771]
[1726096732257,15.3765,132.38,132.35,3.7771]
[1726096742462,19.06446355,132.39,132.35,3.7771]
[1726096742659,15.3762,132.39,132.35,3.7771]
[1726096742961,7.63722157,132.4,132.35,11.6]
[1726096743266,3.7758,132.4,132.35,11.6]
[1726096743759,7.49445775,132.4,132.37,3.7765]
[1726096745477,3.71865775,132.4,132.37,3.7765]
[1726096745772,3.71865775,132.4,132.38,3.7764]
[1726096748072,15.3757,132.41,132.38,3.7764]
[1726096754678,15.3757,132.41,132.37,3.7766]
[1726096761978,3.7757,132.41,132.35,11.6]
[1726096762181,15.3757,132.41,132.35,11.6]
[1726096762490,15.3757,132.41,132.37,3.7765]
[1726096770785,3.7758,132.4,132.37,3.7765]
[1726096770977,7.63910998,132.4,132.36,3.7768]
[1726096774797,11.6,132.39,132.35,3.7771]
[1726096775598,3.70402598,132.38,132.35,3.7771]
[1726096775799,7.48042598,132.38,132.35,3.7771]
[1726096778296,11.6,132.36,132.3,2.7925]
[1726096778497,11.6,132.34,132.29,117.90060307]
[1726096778804,3.7779,132.33,132.29,110.07940307]
[1726096780295,3.7779,132.33,132.3,3.7786]
[1726096781504,3.7779,132.33,132.29,106.30060307]
[1726096781505,3.7782,132.32,132.29,106.30060307]
[1726096781697,11.6,132.33,132.29,106.30060307]
[1726096782091,11.6,132.33,132.3,3.7787]
[1726096783500,15.3779,132.33,132.3,3.7787]
[1726096784396,15.3779,132.33,132.29,110.07950307]
[1726096786709,15.3779,132.33,132.3,3.7787]
[1726096793706,3.7781,132.32,132.29,3.7789]
[1726096794616,15.378,132.33,132.29,3.7789]
[1726096798513,11.6,132.31,132.29,3.7789]
[1726096798723,11.6,132.3,132.25,1.343]
[1726096799711,15.3788,132.3,132.27,3.7795]
[1726096800217,11.6,132.29,132.26,3.7796]
[1726096800414,15.379,132.29,132.26,3.7796]
[1726096800623,11.6,132.29,132.26,3.7796]
[1726096801622,3.7789,132.3,132.26,3.7796]
[1726096801819,11.6,132.29,132.24,11.6]
[1726096802421,11.6,132.29,132.27,3.7794]
[1726096802827,11.6,132.29,132.24,11.6]
[1726096804128,11.6,132.29,132.28,3.7792]
[1726096806029,11.6,132.29,132.23,4.2467]
[1726096806232,11.6,132.28,132.14,31.73831558]
[1726096806433,11.6,132.28,132.22,11.6]
[1726096806627,3.76228988,132.27,132.26,3.7798]
[1726096806828,3.76228988,132.27,132.22,11.6]
[1726096807027,3.76228988,132.27,132.25,3.7801]
[1726096807937,15.3793,132.28,132.25,3.7801]
[1726096808944,11.6,132.27,132.25,3.7801]
[1726096809629,11.6,132.27,132.22,11.6]
[1726096810123,11.6,132.27,132.25,3.7799]
[1726096810526,11.6,132.28,132.26,3.7798]
[1726096810724,4.0561,132.33,132.26,3.7798]
[1726096811025,15.6561,132.33,132.27,11.6]
[1726096811428,4.0561,132.33,132.27,11.6]
[1726096811628,12.9613,132.33,132.27,11.6]
[1726096812530,12.9613,132.33,132.3,3.7786]
[1726096813330,16.7392,132.33,132.29,3.7789]
[1726096814338,11.6,132.31,132.29,3.7789]
[1726096814639,11.6,132.31,132.28,3.7791]
[1726096815928,3.7782,132.32,132.29,3.7789]
[1726096816130,12.9613,132.33,132.27,11.6]
[1726096816439,12.9613,132.33,132.24,1.333]
[1726096816440,15.40279047,132.34,132.28,11.6]
[1726096816739,11.6,132.34,132.32,3.7781]
[1726096817239,15.44457071,132.34,132.32,3.7781]
[1726096817842,15.44457071,132.34,132.31,3.7783]
[1726096818943,11.6,132.34,132.32,3.7781]
[1726096819250,11.6,132.34,132.28,11.6]
[1726096819439,15.38004523,132.34,132.28,11.6]
[1726096820340,15.38004523,132.34,132.31,3.7783]
[1726096823743,11.6,132.36,132.29,11.6]
[1726096824244,15.35434863,132.36,132.32,3.7778]
[1726096825242,11.6,132.34,132.32,3.7778]
[1726096825439,11.6,132.34,132.3,3.7785]
[1726096825645,11.6,132.33,132.28,11.6]
[1726096825944,11.6,132.33,132.31,3.7783]
[1726096829946,11.6,132.33,132.3,3.7786]
[1726096830142,11.6,132.32,132.3,3.7786]
[1726096830346,11.6,132.31,132.24,1.333]
[1726096830648,11.6,132.31,132.24,12.933]
[1726096831249,11.6,132.29,132.27,3.7793]
[1726096832851,11.6,132.29,132.28,3.7792]
[1726096833346,11.6,132.29,132.27,3.7793]
[1726096833952,11.6,132.29,132.24,1.333]
[1726096835248,11.6,132.29,132.27,3.7793]
[1726096835942,11.6,132.28,132.25,3.7801]
[1726096836150,11.6,132.26,132.25,3.7801]
[1726096836453,11.6,132.26,132.22,1.3701]
[1726096836850,11.6,132.28,132.22,12.9701]
[1726096837055,11.6,132.28,132.25,3.7801]
[1726096837555,11.6,132.28,132.22,12.9701]
[1726096838153,15.3793,132.28,132.25,3.7799]
[1726096838543,11.6,132.28,132.22,12.9701]
[1726096839256,11.6,132.28,132.25,3.7799]
[1726096839461,3.78667445,132.29,132.22,12.9701]
[1726096839763,15.40859989,132.29,132.22,12.9701]
[1726096839949,19.18759989,132.29,132.25,3.7798]
[1726096840349,19.18759989,132.29,132.22,12.9701]
[1726096840557,11.6,132.29,132.23,11.6]
[1726096840752,11.6,132.29,132.23,12.9297]
[1726096841059,11.6,132.29,132.27,3.7793]
[1726096841549,11.6,132.29,132.24,11.6]
[1726096841859,11.6,132.28,132.23,2.7526]
[1726096842350,11.6,132.28,132.25,3.7799]
[1726096842560,11.6,132.28,132.23,2.7526]
[1726096842956,15.3792,132.29,132.26,3.7797]
[1726096843456,3.7786,132.31,132.27,3.7793]
[1726096843652,11.6,132.29,132.27,3.7793]
[1726096845351,11.6,132.29,132.28,3.7792]
[1726096846258,11.6,132.29,132.27,3.7793]
[1726096847365,11.6,132.29,132.28,3.7792]
[1726096847562,11.6,132.31,132.24,11.6]
[1726096847763,11.6,132.32,132.23,2.7526]
[1726096848058,15.38363985,132.33,132.27,11.6]
[1726096848467,11.6,132.33,132.27,11.6]
[1726096848668,11.6,132.33,132.31,3.7782]
[1726096852365,11.6,132.33,132.23,2.7526]
[1726096852366,15.3779,132.33,132.3,3.7786]
[1726096854366,1.4356,132.35,132.3,11.6]
[1726096854665,2.7227,132.37,132.3,11.6]
[1726096854862,14.3227,132.37,132.33,3.7778]
[1726096855160,3.74641292,132.36,132.33,3.7778]
[1726096855865,3.74641292,132.36,132.32,3.778]
[1726096856566,11.6,132.35,132.32,3.778]
[1726096857067,3.74641292,132.36,132.33,3.7778]
[1726096857260,2.7227,132.37,132.33,3.7778]
[1726096857459,11.6,132.36,132.33,3.7778]
[1726096858261,11.6,132.36,132.32,3.778]
[1726096858767,15.377,132.36,132.32,3.778]
[1726096858968,15.377,132.36,132.33,3.7778]
[1726096860865,15.3773,132.35,132.32,3.7781]
[1726096861066,11.6,132.33,132.23,2.7526]
[1726096861261,11.6,132.31,132.24,11.6]
[1726096861569,11.6,132.29,132.24,11.6]
[1726096861967,11.6,132.29,132.27,3.7793]
[1726096862374,15.3785,132.31,132.24,11.6]
[1726096862770,11.6,132.31,132.28,3.7792]
[1726096871978,3.7782,132.32,132.28,3.7792]
[1726096872188,11.6,132.31,132.28,3.7792]
[1726096876683,11.6,132.31,132.29,3.7789]
[1726096879590,1.4223,132.35,132.29,3.7789]
[1726096879591,3.7779,132.33,132.29,3.7789]
[1726096879792,11.6,132.32,132.29,3.7789]
[1726096880983,15.3781,132.32,132.29,3.7789]
[1726096890188,11.6,132.3,132.29,3.7789]
[1726096894997,11.6,132.3,132.28,3.7792]
[1726096898117,11.6,132.3,132.23,2.7526]
[1726096898118,11.6,132.29,132.23,2.7526]
[1726096898608,19.11502764,132.29,132.23,2.7526]
[1726096899194,15.3793,132.28,132.23,2.7526]
[1726096899912,19.18439049,132.28,132.23,2.7526]
[1726096900115,19.18439049,132.28,132.25,3.7799]
[1726096900499,11.6,132.26,132.23,1.3297]
[1726096900705,3.74197467,132.31,132.25,11.6]
[1726096901005,15.3782,132.32,132.25,11.6]
[1726096901225,3.73895116,132.31,132.28,3.779]
[1726096901607,15.3782,132.32,132.28,3.779]
[1726096902112,19.19576248,132.32,132.28,3.779]
[1726096902523,19.19576248,132.32,132.29,3.7789]
[1726096903017,15.41756248,132.32,132.29,3.7789]
[1726096903819,19.19566248,132.32,132.29,3.7789]
[1726096904124,15.41756248,132.32,132.29,3.7789]
[1726096905217,19.19576248,132.32,132.28,3.7791]
[1726096905526,15.41756248,132.32,132.25,11.6]
[1726096906415,11.6,132.3,132.24,12.926]
[1726096906920,19.19576248,132.32,132.28,3.779]
[1726096907116,15.3782,132.32,132.28,3.779]
[1726096907312,15.3782,132.32,132.26,11.6]
[1726096907516,15.39535508,132.32,132.29,3.7789]
[1726096908615,15.39535508,132.32,132.26,11.6]
[1726096908616,11.6,132.32,132.31,3.7784]
[1726096908818,11.6,132.32,132.26,11.6]
[1726096909519,11.6,132.32,132.29,3.7787]
[1726096910420,11.6,132.32,132.26,11.6]
[1726096910621,11.6,132.33,132.26,11.6]
[1726096911514,15.378,132.33,132.3,3.7786]
[1726096912616,11.6,132.33,132.31,3.7783]
[1726096917723,11.6,132.33,132.3,3.7785]
[1726096920524,11.6,132.33,132.27,14.3641]
[1726096920926,3.74140895,132.36,132.31,11.6]
[1726096921430,14.3227,132.37,132.31,11.6]
[1726096921628,11.6,132.36,132.33,3.7777]
[1726096921928,15.43056449,132.36,132.3,11.6]
[1726096922125,3.83056449,132.36,132.3,11.6]
[1726096922331,11.6,132.38,132.32,11.6]
[1726096922524,11.6,132.4,132.34,11.6]
[1726096922837,11.6,132.4,132.38,3.7764]
[1726096923733,11.6,132.4,132.37,3.7765]
[1726096927537,11.6,132.4,132.38,3.7763]
[1726096931648,11.6,132.4,132.37,3.7765]
[1726096934849,15.3757,132.41,132.38,3.7763]
[1726096935538,11.6,132.41,132.38,3.7763]
[1726096936343,15.3756,132.41,132.38,3.7763]
[1726096936746,15.3756,132.41,132.37,3.7765]
[1726096936942,15.376,132.4,132.34,11.6]
[1726096937937,15.376,132.4,132.37,3.7766]
[1726096939748,11.6,132.38,132.36,3.7769]
[1726096939943,15.36615149,132.38,132.36,3.7769]
[1726096940738,11.6,132.37,132.35,3.7771]